[Event "Titled Tuesday Blitz April 25 Early 2023"]
[White "Matveeva, Olga"]
[Black "Degenbaev, Aziz"]
[WhiteFideId "24107018"]
[BlackFideId "13802640"]
[WhiteElo "2056"]
[BlackElo "2152"]
[Result "0-1"]
[Round "07"]
[TimeControl "180+2"]
[Date "2023.04.25"]
[WhiteClock "0:00:47"]
[BlackClock "0:00:43"]

1. d4 {[%clk 0:03:00]}  Nf6 {[%clk 0:02:59]} 2. c4 {[%clk 0:03:01]}  g6 {[%clk 0:02:59]} 3. g3 {[%clk 0:03:01]}  Bg7 {[%clk 0:02:59]} 4. Bg2 {[%clk 0:03:02]}  O-O {[%clk 0:03:00]} 5. Nc3 {[%clk 0:03:02]}  d6 {[%clk 0:03:01]} 6. Nf3 {[%clk 0:03:03]}  c5 {[%clk 0:03:01]} 7. d5 {[%clk 0:03:02]}  e6 {[%clk 0:03:01]} 8. O-O {[%clk 0:03:00]}  Re8 {[%clk 0:03:02]} 9. h3 {[%clk 0:02:54]}  exd5 {[%clk 0:02:57]} 10. cxd5 {[%clk 0:02:55]}  a6 {[%clk 0:02:58]} 11. a4 {[%clk 0:02:54]}  Nbd7 {[%clk 0:02:24]} 12. Nd2 {[%clk 0:02:53]}  Rb8 {[%clk 0:02:24]} 13. Nc4 {[%clk 0:02:46]}  Nb6 {[%clk 0:02:13]} 14. Ne3 {[%clk 0:02:26]}  Bd7 {[%clk 0:01:53]} 15. a5 {[%clk 0:02:22]}  Nc8 {[%clk 0:01:53]} 16. Qc2 {[%clk 0:02:03]}  Bb5 {[%clk 0:01:30]} 17. b3 {[%clk 0:01:36]}  b6 {[%clk 0:01:13]} 18. axb6 {[%clk 0:01:35]}  Nxb6 {[%clk 0:01:13]} 19. Bd2 {[%clk 0:01:22]}  Qc8 {[%clk 0:01:13]} 20. Ra5 {[%clk 0:01:11]}  Bd7 {[%clk 0:01:08]} 21. Rfa1 {[%clk 0:01:07]}  Bxh3 {[%clk 0:01:07]} 22. Rxa6 {[%clk 0:01:05]}  Bxg2 {[%clk 0:01:04]} 23. Kxg2 {[%clk 0:01:06]}  Rxe3 {[%clk 0:00:48]} 24. Bxe3 {[%clk 0:00:57]}  Nfxd5 {[%clk 0:00:48]} 25. Bd2 {[%clk 0:00:55]}  Nb4 {[%clk 0:00:47]} 26. Qe4 {[%clk 0:00:46]}  Nxa6 {[%clk 0:00:44]} 27. Rxa6 {[%clk 0:00:47]}  Qxa6 {[%clk 0:00:43]} 0-1


[Site "https://www.chess.com"]

[Event "Titled Tuesday Blitz April 25 Early 2023"]
[White "Prudnykova, Olga"]
[Black "Erzhanov, Arman"]
[WhiteFideId "14121093"]
[BlackFideId "4138821"]
[WhiteElo "2113"]
[BlackElo "2138"]
[Result "1-0"]
[Round "07"]
[TimeControl "180+2"]
[Date "2023.04.25"]
[WhiteClock "0:00:40"]
[BlackClock "0:00:17"]

1. e4 {[%clk 0:02:59]}  d6 {[%clk 0:02:56]} 2. d4 {[%clk 0:02:57]}  Nf6 {[%clk 0:02:56]} 3. Nc3 {[%clk 0:02:58]}  e5 {[%clk 0:02:56]} 4. Nf3 {[%clk 0:02:54]}  Nbd7 {[%clk 0:02:56]} 5. g4 {[%clk 0:02:54]}  g6 {[%clk 0:02:53]} 6. g5 {[%clk 0:02:53]}  Nh5 {[%clk 0:02:52]} 7. Be3 {[%clk 0:02:48]}  Bg7 {[%clk 0:02:52]} 8. Qd2 {[%clk 0:02:47]}  c6 {[%clk 0:02:51]} 9. O-O-O {[%clk 0:02:46]}  O-O {[%clk 0:02:51]} 10. Be2 {[%clk 0:02:45]}  Qa5 {[%clk 0:02:31]} 11. Ne1 {[%clk 0:02:28]}  Nf4 {[%clk 0:02:29]} 12. Bxf4 {[%clk 0:02:24]}  exf4 {[%clk 0:02:29]} 13. Qxf4 {[%clk 0:02:24]}  c5 {[%clk 0:02:20]} 14. Nf3 {[%clk 0:02:18]}  cxd4 {[%clk 0:02:17]} 15. Nxd4 {[%clk 0:02:15]}  Ne5 {[%clk 0:02:14]} 16. Qe3 {[%clk 0:02:09]}  a6 {[%clk 0:02:11]} 17. f4 {[%clk 0:02:08]}  Nd7 {[%clk 0:02:06]} 18. Nb3 {[%clk 0:02:08]}  Qd8 {[%clk 0:01:59]} 19. Rxd6 {[%clk 0:01:59]}  Qc7 {[%clk 0:01:53]} 20. Rhd1 {[%clk 0:01:57]}  Bxc3 {[%clk 0:01:37]} 21. Qxc3 {[%clk 0:01:47]}  Qxc3 {[%clk 0:01:37]} 22. bxc3 {[%clk 0:01:48]}  Nb8 {[%clk 0:01:35]} 23. Na5 {[%clk 0:01:34]}  Nc6 {[%clk 0:01:15]} 24. Nxc6 {[%clk 0:01:26]}  bxc6 {[%clk 0:01:16]} 25. Bc4 {[%clk 0:01:18]}  Bg4 {[%clk 0:01:12]} 26. R1d3 {[%clk 0:01:13]}  Rae8 {[%clk 0:01:07]} 27. e5 {[%clk 0:01:12]}  Bf5 {[%clk 0:01:06]} 28. R3d4 {[%clk 0:01:11]}  Rc8 {[%clk 0:00:52]} 29. Bxa6 {[%clk 0:01:07]}  Rc7 {[%clk 0:00:53]} 30. Bc4 {[%clk 0:01:05]}  Rb8 {[%clk 0:00:51]} 31. Rd8+ {[%clk 0:01:05]}  Rxd8 {[%clk 0:00:51]} 32. Rxd8+ {[%clk 0:01:05]}  Kg7 {[%clk 0:00:51]} 33. Ra8 {[%clk 0:01:01]}  h6 {[%clk 0:00:50]} 34. h4 {[%clk 0:01:00]}  hxg5 {[%clk 0:00:51]} 35. hxg5 {[%clk 0:01:01]}  Be4 {[%clk 0:00:49]} 36. a4 {[%clk 0:01:01]}  c5 {[%clk 0:00:49]} 37. Ra6 {[%clk 0:00:53]}  Kf8 {[%clk 0:00:49]} 38. a5 {[%clk 0:00:53]}  Ke8 {[%clk 0:00:48]} 39. Rf6 {[%clk 0:00:50]}  Ba8 {[%clk 0:00:18]} 40. e6 {[%clk 0:00:44]}  fxe6 {[%clk 0:00:17]} 41. Rxe6+ {[%clk 0:00:43]}  Kd7 {[%clk 0:00:17]} 42. Rxg6 {[%clk 0:00:43]}  Kc8 {[%clk 0:00:17]} 43. Rg8+ {[%clk 0:00:41]}  Kb7 {[%clk 0:00:17]} 44. Bd5+ {[%clk 0:00:41]}  Ka6 {[%clk 0:00:17]} 45. Rxa8+ {[%clk 0:00:40]} 1-0


[Site "https://www.chess.com"]

[Event "Titled Tuesday Blitz April 25 Early 2023"]
[White "Toncheva, Nadya"]
[Black "Torres Dominguez, David"]
[WhiteFideId "2924056"]
[BlackFideId "2220857"]
[WhiteElo "2101"]
[BlackElo "1999"]
[Result "1-0"]
[Round "07"]
[TimeControl "180+2"]
[Date "2023.04.25"]
[WhiteClock "0:00:43"]
[BlackClock "0:00:21"]

1. e4 {[%clk 0:03:00]}  Nc6 {[%clk 0:02:58]} 2. d4 {[%clk 0:03:00]}  e5 {[%clk 0:02:57]} 3. d5 {[%clk 0:02:59]}  Nce7 {[%clk 0:02:57]} 4. c4 {[%clk 0:02:57]}  Ng6 {[%clk 0:02:57]} 5. Nc3 {[%clk 0:02:57]}  Bc5 {[%clk 0:02:56]} 6. Na4 {[%clk 0:02:51]}  Bb4+ {[%clk 0:02:54]} 7. Bd2 {[%clk 0:02:52]}  Bxd2+ {[%clk 0:02:54]} 8. Qxd2 {[%clk 0:02:53]}  d6 {[%clk 0:02:54]} 9. Bd3 {[%clk 0:02:50]}  N8e7 {[%clk 0:02:52]} 10. Ne2 {[%clk 0:02:50]}  O-O {[%clk 0:02:51]} 11. O-O-O {[%clk 0:02:50]}  a6 {[%clk 0:02:43]} 12. Nac3 {[%clk 0:02:48]}  b5 {[%clk 0:02:42]} 13. h4 {[%clk 0:02:41]}  b4 {[%clk 0:02:16]} 14. Nb1 {[%clk 0:02:30]}  a5 {[%clk 0:02:16]} 15. h5 {[%clk 0:02:28]}  Nf4 {[%clk 0:02:16]} 16. Nxf4 {[%clk 0:02:28]}  exf4 {[%clk 0:02:16]} 17. Qxf4 {[%clk 0:02:28]}  h6 {[%clk 0:01:46]} 18. g4 {[%clk 0:02:26]}  f6 {[%clk 0:01:39]} 19. Qg3 {[%clk 0:02:17]}  Qd7 {[%clk 0:01:36]} 20. Rdg1 {[%clk 0:02:16]}  Qa4 {[%clk 0:01:21]} 21. f4 {[%clk 0:02:09]}  Qxa2 {[%clk 0:01:14]} 22. g5 {[%clk 0:02:07]}  hxg5 {[%clk 0:01:08]} 23. fxg5 {[%clk 0:02:06]}  f5 {[%clk 0:01:08]} 24. g6 {[%clk 0:02:00]}  a4 {[%clk 0:01:04]} 25. h6 {[%clk 0:01:54]}  a3 {[%clk 0:01:04]} 26. hxg7 {[%clk 0:01:30]}  Qxb2+ {[%clk 0:01:02]} 27. Kd1 {[%clk 0:01:30]}  Qxg7 {[%clk 0:00:50]} 28. Rh7 {[%clk 0:01:21]}  Qe5 {[%clk 0:00:37]} 29. Qxe5 {[%clk 0:00:43]}  dxe5 {[%clk 0:00:36]} 30. g7 {[%clk 0:00:44]}  Rf6 {[%clk 0:00:23]} 31. Rh8+ {[%clk 0:00:43]}  Kf7 {[%clk 0:00:21]} 32. Rf8# {[%clk 0:00:43]} 1-0


[Site "https://www.chess.com"]

[Event "Titled Tuesday Blitz April 25 Early 2023"]
[White "Romkachess"]
[Black "Aung Thant Zin"]
[BlackFideId "13000063"]
[WhiteElo "2472"]
[BlackElo "2278"]
[Result "0-1"]
[Round "07"]
[TimeControl "180+2"]
[Date "2023.04.25"]
[WhiteClock "0:00:03"]
[BlackClock "0:00:45"]

1. e4 {[%clk 0:02:54]}  c5 {[%clk 0:02:56]} 2. Nf3 {[%clk 0:02:53]}  Nc6 {[%clk 0:02:54]} 3. Bb5 {[%clk 0:02:49]}  d6 {[%clk 0:02:53]} 4. O-O {[%clk 0:02:49]}  Bg4 {[%clk 0:02:53]} 5. h3 {[%clk 0:02:48]}  Bxf3 {[%clk 0:02:52]} 6. Qxf3 {[%clk 0:02:48]}  e6 {[%clk 0:02:51]} 7. Nc3 {[%clk 0:02:46]}  Nf6 {[%clk 0:02:49]} 8. d3 {[%clk 0:02:46]}  Be7 {[%clk 0:02:48]} 9. e5 {[%clk 0:02:43]}  dxe5 {[%clk 0:02:44]} 10. Bxc6+ {[%clk 0:02:42]}  bxc6 {[%clk 0:02:44]} 11. Qxc6+ {[%clk 0:02:43]}  Nd7 {[%clk 0:02:44]} 12. Qf3 {[%clk 0:02:33]}  O-O {[%clk 0:02:38]} 13. b3 {[%clk 0:02:31]}  f5 {[%clk 0:02:32]} 14. Qc6 {[%clk 0:01:36]}  Rf6 {[%clk 0:02:27]} 15. Bg5 {[%clk 0:01:35]}  Rc8 {[%clk 0:02:20]} 16. Qa6 {[%clk 0:01:27]}  Nb8 {[%clk 0:02:08]} 17. Qxa7 {[%clk 0:00:29]}  Nc6 {[%clk 0:02:00]} 18. Qa4 {[%clk 0:00:23]}  Rg6 {[%clk 0:01:43]} 19. Bxe7 {[%clk 0:00:22]}  Qxe7 {[%clk 0:01:37]} 20. Ne2 {[%clk 0:00:13]}  f4 {[%clk 0:01:21]} 21. Qe4 {[%clk 0:00:12]}  Rf8 {[%clk 0:01:12]} 22. Kh1 {[%clk 0:00:09]}  f3 {[%clk 0:01:10]} 23. gxf3 {[%clk 0:00:09]}  Nd4 {[%clk 0:01:01]} 24. Nxd4 {[%clk 0:00:07]}  cxd4 {[%clk 0:01:01]} 25. Rg1 {[%clk 0:00:04]}  Rgf6 {[%clk 0:00:59]} 26. Rg3 {[%clk 0:00:04]}  Rf4 {[%clk 0:00:59]} 27. Qxe5 {[%clk 0:00:04]}  Rxf3 {[%clk 0:00:59]} 28. Rag1 {[%clk 0:00:04]}  Rxg3 {[%clk 0:00:56]} 29. Qxg3 {[%clk 0:00:05]}  Qb7+ {[%clk 0:00:51]} 30. Qg2 {[%clk 0:00:04]}  Qf7 {[%clk 0:00:48]} 31. f3 {[%clk 0:00:03]}  g6 {[%clk 0:00:48]} 32. Kh2 {[%clk 0:00:03]}  Qf4+ {[%clk 0:00:47]} 33. Qg3 {[%clk 0:00:04]}  Qd2+ {[%clk 0:00:46]} 34. Rg2 {[%clk 0:00:04]}  Qe3 {[%clk 0:00:47]} 35. h4 {[%clk 0:00:04]}  Rxf3 {[%clk 0:00:46]} 36. Qg5 {[%clk 0:00:03]}  Rh3# {[%clk 0:00:45]} 0-1


[Site "https://www.chess.com"]

[Event "Titled Tuesday Blitz April 25 Early 2023"]
[White "Heinemann, Josefine"]
[Black "Semenova, Alina"]
[WhiteFideId "12900460"]
[BlackFideId "24113875"]
[WhiteElo "2342"]
[BlackElo "1833"]
[Result "1/2-1/2"]
[Round "07"]
[TimeControl "180+2"]
[Date "2023.04.25"]
[WhiteClock "0:00:23"]
[BlackClock "0:00:27"]

1. e4 {[%clk 0:03:00]}  e6 {[%clk 0:02:57]} 2. d4 {[%clk 0:02:56]}  d5 {[%clk 0:02:57]} 3. e5 {[%clk 0:02:52]}  c5 {[%clk 0:02:57]} 4. c3 {[%clk 0:02:53]}  Qb6 {[%clk 0:02:56]} 5. Nf3 {[%clk 0:02:53]}  Nc6 {[%clk 0:02:56]} 6. Be2 {[%clk 0:02:51]}  Bd7 {[%clk 0:02:55]} 7. O-O {[%clk 0:02:51]}  Nh6 {[%clk 0:02:55]} 8. a3 {[%clk 0:02:46]}  cxd4 {[%clk 0:02:52]} 9. cxd4 {[%clk 0:02:25]}  Nf5 {[%clk 0:02:51]} 10. b4 {[%clk 0:02:06]}  Ncxd4 {[%clk 0:02:45]} 11. Nxd4 {[%clk 0:01:54]}  Qxd4 {[%clk 0:02:44]} 12. Qxd4 {[%clk 0:01:46]}  Nxd4 {[%clk 0:02:44]} 13. Bd3 {[%clk 0:01:46]}  Nb3 {[%clk 0:02:44]} 14. Ra2 {[%clk 0:01:45]}  Nxc1 {[%clk 0:02:43]} 15. Rxc1 {[%clk 0:01:44]}  Rc8 {[%clk 0:02:41]} 16. Rac2 {[%clk 0:01:43]}  Rxc2 {[%clk 0:02:37]} 17. Rxc2 {[%clk 0:01:44]}  Kd8 {[%clk 0:02:29]} 18. f4 {[%clk 0:01:41]}  Be7 {[%clk 0:02:28]} 19. Kf2 {[%clk 0:01:40]}  g6 {[%clk 0:02:27]} 20. Nd2 {[%clk 0:01:38]}  a6 {[%clk 0:02:23]} 21. Nf3 {[%clk 0:01:37]}  h6 {[%clk 0:02:20]} 22. Nd4 {[%clk 0:01:37]}  Ba4 {[%clk 0:02:07]} 23. Rc1 {[%clk 0:01:35]}  Kd7 {[%clk 0:02:05]} 24. Ke3 {[%clk 0:01:29]}  Rc8 {[%clk 0:02:05]} 25. Rxc8 {[%clk 0:01:28]}  Kxc8 {[%clk 0:02:06]} 26. g3 {[%clk 0:01:28]}  Kc7 {[%clk 0:02:02]} 27. h4 {[%clk 0:01:25]}  h5 {[%clk 0:02:00]} 28. Kd2 {[%clk 0:01:20]}  Kb6 {[%clk 0:01:58]} 29. Kc3 {[%clk 0:01:19]}  a5 {[%clk 0:01:57]} 30. Nb3 {[%clk 0:01:18]}  axb4+ {[%clk 0:01:53]} 31. axb4 {[%clk 0:01:19]}  Bb5 {[%clk 0:01:39]} 32. Bb1 {[%clk 0:01:11]}  Bc4 {[%clk 0:01:24]} 33. Nd4 {[%clk 0:01:11]}  Ka6 {[%clk 0:01:19]} 34. Bc2 {[%clk 0:01:10]}  Bd8 {[%clk 0:01:08]} 35. Bb1 {[%clk 0:01:00]}  Bb6 {[%clk 0:01:07]} 36. Bc2 {[%clk 0:00:48]}  Bxd4+ {[%clk 0:01:03]} 37. Kxd4 {[%clk 0:00:49]}  Kb5 {[%clk 0:01:03]} 38. Kc3 {[%clk 0:00:48]}  d4+ {[%clk 0:01:03]} 39. Kxd4 {[%clk 0:00:48]}  Kxb4 {[%clk 0:01:03]} 40. Be4 {[%clk 0:00:48]}  Ba6 {[%clk 0:00:47]} 41. Bf3 {[%clk 0:00:44]}  b6 {[%clk 0:00:47]} 42. g4 {[%clk 0:00:44]}  hxg4 {[%clk 0:00:46]} 43. Bxg4 {[%clk 0:00:44]}  Bb5 {[%clk 0:00:43]} 44. h5 {[%clk 0:00:43]}  gxh5 {[%clk 0:00:42]} 45. Bxh5 {[%clk 0:00:44]}  Be8 {[%clk 0:00:25]} 46. f5 {[%clk 0:00:30]}  exf5 {[%clk 0:00:26]} 47. e6 {[%clk 0:00:30]}  fxe6 {[%clk 0:00:27]} 48. Bxe8 {[%clk 0:00:30]}  b5 {[%clk 0:00:24]} 49. Ke5 {[%clk 0:00:21]}  Kc4 {[%clk 0:00:23]} 50. Bf7 {[%clk 0:00:21]}  b4 {[%clk 0:00:23]} 51. Bxe6+ {[%clk 0:00:21]}  Kc3 {[%clk 0:00:24]} 52. Bxf5 {[%clk 0:00:21]}  b3 {[%clk 0:00:25]} 53. Be4 {[%clk 0:00:22]}  b2 {[%clk 0:00:25]} 54. Bf5 {[%clk 0:00:22]}  Kd2 {[%clk 0:00:26]} 55. Be4 {[%clk 0:00:23]}  Kc1 {[%clk 0:00:27]} 56. Bf5 {[%clk 0:00:23]}  b1=Q {[%clk 0:00:27]} 57. Bxb1 {[%clk 0:00:23]} 1/2-1/2


[Site "https://www.chess.com"]

[Event "Titled Tuesday Blitz April 25 Early 2023"]
[White "wqws"]
[Black "Luong Phuong Hanh"]
[BlackFideId "12401013"]
[WhiteElo "2584"]
[BlackElo "2081"]
[Result "1-0"]
[Round "07"]
[TimeControl "180+2"]
[Date "2023.04.25"]
[WhiteClock "0:01:14"]
[BlackClock "0:00:01"]

1. e4 {[%clk 0:03:00]}  c5 {[%clk 0:02:59]} 2. Nf3 {[%clk 0:03:00]}  e6 {[%clk 0:02:59]} 3. d4 {[%clk 0:03:01]}  cxd4 {[%clk 0:03:00]} 4. Nxd4 {[%clk 0:03:01]}  a6 {[%clk 0:03:01]} 5. Bd3 {[%clk 0:03:00]}  Bc5 {[%clk 0:02:59]} 6. Nb3 {[%clk 0:03:00]}  Be7 {[%clk 0:03:00]} 7. O-O {[%clk 0:02:59]}  d6 {[%clk 0:02:50]} 8. c4 {[%clk 0:02:59]}  Nf6 {[%clk 0:02:50]} 9. Nc3 {[%clk 0:02:59]}  O-O {[%clk 0:02:50]} 10. Qe2 {[%clk 0:02:58]}  Nbd7 {[%clk 0:02:50]} 11. Rd1 {[%clk 0:02:59]}  Qc7 {[%clk 0:02:50]} 12. h3 {[%clk 0:02:57]}  b6 {[%clk 0:02:50]} 13. Be3 {[%clk 0:02:57]}  Bb7 {[%clk 0:02:50]} 14. Rac1 {[%clk 0:02:58]}  Rac8 {[%clk 0:02:50]} 15. f3 {[%clk 0:02:55]}  Rfe8 {[%clk 0:02:46]} 16. Qf2 {[%clk 0:02:55]}  Qb8 {[%clk 0:02:42]} 17. Bf1 {[%clk 0:02:55]}  Ne5 {[%clk 0:02:31]} 18. Nd2 {[%clk 0:02:44]}  d5 {[%clk 0:02:04]} 19. cxd5 {[%clk 0:02:42]}  exd5 {[%clk 0:02:05]} 20. exd5 {[%clk 0:02:40]}  Nxd5 {[%clk 0:02:04]} 21. Nxd5 {[%clk 0:02:40]}  Bxd5 {[%clk 0:02:05]} 22. Bxa6 {[%clk 0:02:32]}  Rxc1 {[%clk 0:02:03]} 23. Rxc1 {[%clk 0:02:33]}  Bxa2 {[%clk 0:01:41]} 24. Bxb6 {[%clk 0:02:20]}  Bh4 {[%clk 0:01:20]} 25. Qd4 {[%clk 0:02:11]}  Bg5 {[%clk 0:01:18]} 26. Bc7 {[%clk 0:01:50]}  Qa8 {[%clk 0:01:08]} 27. Bb5 {[%clk 0:01:47]}  Bxd2 {[%clk 0:00:34]} 28. Qxd2 {[%clk 0:01:46]}  Re7 {[%clk 0:00:20]} 29. Qd8+ {[%clk 0:01:23]}  Qxd8 {[%clk 0:00:19]} 30. Bxd8 {[%clk 0:01:24]}  Re6 {[%clk 0:00:13]} 31. Rc8 {[%clk 0:01:25]}  h6 {[%clk 0:00:11]} 32. f4 {[%clk 0:01:17]}  Ng6 {[%clk 0:00:08]} 33. f5 {[%clk 0:01:17]}  Re1+ {[%clk 0:00:08]} 34. Kf2 {[%clk 0:01:17]}  Re5 {[%clk 0:00:07]} 35. fxg6 {[%clk 0:01:16]}  fxg6 {[%clk 0:00:02]} 36. Bc4+ {[%clk 0:01:15]}  Kh7 {[%clk 0:00:01]} 37. Bxa2 {[%clk 0:01:14]} 1-0


[Site "https://www.chess.com"]

[Event "Titled Tuesday Blitz April 25 Early 2023"]
[White "Chabris, Christopher"]
[Black "Ordekalog"]
[WhiteFideId "2005263"]
[WhiteElo "2313"]
[BlackElo "2480"]
[Result "1-0"]
[Round "07"]
[TimeControl "180+2"]
[Date "2023.04.25"]
[WhiteClock "0:00:10"]
[BlackClock "0:00:02"]

1. e4 {[%clk 0:03:00]}  d5 {[%clk 0:02:58]} 2. exd5 {[%clk 0:02:59]}  Qxd5 {[%clk 0:02:57]} 3. Nc3 {[%clk 0:02:59]}  Qa5 {[%clk 0:02:57]} 4. d4 {[%clk 0:02:59]}  Nf6 {[%clk 0:02:56]} 5. Nf3 {[%clk 0:02:59]}  Bg4 {[%clk 0:02:56]} 6. Bd2 {[%clk 0:02:58]}  c6 {[%clk 0:02:54]} 7. h3 {[%clk 0:02:53]}  Bxf3 {[%clk 0:02:51]} 8. Qxf3 {[%clk 0:02:53]}  e6 {[%clk 0:02:51]} 9. Ne4 {[%clk 0:02:49]}  Qd8 {[%clk 0:02:47]} 10. Nxf6+ {[%clk 0:02:43]}  Qxf6 {[%clk 0:02:46]} 11. Qxf6 {[%clk 0:02:42]}  gxf6 {[%clk 0:02:47]} 12. Bd3 {[%clk 0:02:41]}  Nd7 {[%clk 0:02:44]} 13. O-O {[%clk 0:02:39]}  h5 {[%clk 0:02:41]} 14. Rfe1 {[%clk 0:02:36]}  O-O-O {[%clk 0:02:39]} 15. c4 {[%clk 0:02:32]}  Nc5 {[%clk 0:02:28]} 16. Bf1 {[%clk 0:02:04]}  Rxd4 {[%clk 0:02:27]} 17. Bc3 {[%clk 0:01:50]}  Rf4 {[%clk 0:02:26]} 18. g3 {[%clk 0:01:47]}  Rf5 {[%clk 0:02:25]} 19. h4 {[%clk 0:01:40]}  Bh6 {[%clk 0:02:13]} 20. Bh3 {[%clk 0:01:29]}  Rf3 {[%clk 0:02:12]} 21. Kg2 {[%clk 0:01:25]}  Rxc3 {[%clk 0:02:10]} 22. bxc3 {[%clk 0:01:24]}  Bd2 {[%clk 0:02:10]} 23. Re2 {[%clk 0:01:15]}  Bxc3 {[%clk 0:02:09]} 24. Rd1 {[%clk 0:01:13]}  Kc7 {[%clk 0:02:05]} 25. f3 {[%clk 0:01:01]}  f5 {[%clk 0:02:00]} 26. f4 {[%clk 0:00:53]}  Rg8 {[%clk 0:01:52]} 27. Kh2 {[%clk 0:00:47]}  Ne4 {[%clk 0:01:36]} 28. Rd3 {[%clk 0:00:46]}  Bb4 {[%clk 0:01:23]} 29. Bg2 {[%clk 0:00:45]}  Nc5 {[%clk 0:01:21]} 30. Rd1 {[%clk 0:00:43]}  a5 {[%clk 0:01:19]} 31. Bf3 {[%clk 0:00:43]}  Rh8 {[%clk 0:01:19]} 32. Re3 {[%clk 0:00:40]}  Nd7 {[%clk 0:01:07]} 33. Red3 {[%clk 0:00:37]}  Nf6 {[%clk 0:01:06]} 34. a3 {[%clk 0:00:34]}  Bc5 {[%clk 0:01:05]} 35. Rb3 {[%clk 0:00:29]}  Rg8 {[%clk 0:01:01]} 36. Rdb1 {[%clk 0:00:27]}  b6 {[%clk 0:01:00]} 37. Rd3 {[%clk 0:00:25]}  a4 {[%clk 0:00:52]} 38. Bd1 {[%clk 0:00:23]}  Ra8 {[%clk 0:00:48]} 39. Rb2 {[%clk 0:00:22]}  Ra5 {[%clk 0:00:17]} 40. Rbd2 {[%clk 0:00:21]}  Be7 {[%clk 0:00:17]} 41. Bxh5 {[%clk 0:00:20]}  Bxa3 {[%clk 0:00:09]} 42. Bxf7 {[%clk 0:00:19]}  Bb4 {[%clk 0:00:09]} 43. Ra2 {[%clk 0:00:18]}  a3 {[%clk 0:00:06]} 44. h5 {[%clk 0:00:17]}  Ng4+ {[%clk 0:00:05]} 45. Kh3 {[%clk 0:00:16]}  Be7 {[%clk 0:00:04]} 46. Bxe6 {[%clk 0:00:14]}  Bf6 {[%clk 0:00:03]} 47. Kg2 {[%clk 0:00:13]}  Ra4 {[%clk 0:00:02]} 48. Rd7+ {[%clk 0:00:12]}  Kb8 {[%clk 0:00:02]} 49. Rad2 {[%clk 0:00:11]}  a2 {[%clk 0:00:02]} 50. Rf7 {[%clk 0:00:10]} 1-0


[Site "https://www.chess.com"]

[Event "Titled Tuesday Blitz April 25 Early 2023"]
[White "Ljukin, Sergei"]
[Black "Rodriguez Santiago, Jaime"]
[WhiteFideId "14102200"]
[BlackFideId "3100898"]
[WhiteElo "2312"]
[BlackElo "2025"]
[Result "1-0"]
[Round "07"]
[TimeControl "180+2"]
[Date "2023.04.25"]
[WhiteClock "0:00:11"]
[BlackClock "0:00:36"]

1. e4 {[%clk 0:02:53]}  c6 {[%clk 0:02:58]} 2. d4 {[%clk 0:02:53]}  d5 {[%clk 0:02:59]} 3. e5 {[%clk 0:02:53]}  Bf5 {[%clk 0:02:59]} 4. Nd2 {[%clk 0:02:53]}  e6 {[%clk 0:02:56]} 5. Nb3 {[%clk 0:02:53]}  c5 {[%clk 0:02:55]} 6. dxc5 {[%clk 0:02:53]}  Bxc5 {[%clk 0:02:53]} 7. Nxc5 {[%clk 0:02:53]}  Qa5+ {[%clk 0:02:53]} 8. c3 {[%clk 0:02:53]}  Qxc5 {[%clk 0:02:53]} 9. Be3 {[%clk 0:02:53]}  Qc7 {[%clk 0:02:53]} 10. f4 {[%clk 0:02:53]}  h5 {[%clk 0:02:52]} 11. Nf3 {[%clk 0:02:53]}  Ne7 {[%clk 0:02:49]} 12. Be2 {[%clk 0:02:52]}  Nbc6 {[%clk 0:02:46]} 13. O-O {[%clk 0:02:52]}  h4 {[%clk 0:02:45]} 14. h3 {[%clk 0:02:41]}  Be4 {[%clk 0:02:40]} 15. Bf2 {[%clk 0:02:37]}  Nf5 {[%clk 0:02:38]} 16. Qe1 {[%clk 0:02:37]}  Bxf3 {[%clk 0:02:31]} 17. Bxf3 {[%clk 0:02:37]}  Nce7 {[%clk 0:02:28]} 18. Rc1 {[%clk 0:02:33]}  Ng6 {[%clk 0:02:26]} 19. Bg4 {[%clk 0:02:03]}  Nxf4 {[%clk 0:02:08]} 20. Bxf5 {[%clk 0:02:02]}  exf5 {[%clk 0:02:08]} 21. Bxh4 {[%clk 0:01:59]}  Nd3 {[%clk 0:02:04]} 22. Qg3 {[%clk 0:01:45]}  Nxc1 {[%clk 0:01:57]} 23. Rxc1 {[%clk 0:01:35]}  g6 {[%clk 0:01:38]} 24. Bf6 {[%clk 0:01:33]}  Rh5 {[%clk 0:01:34]} 25. Rd1 {[%clk 0:01:23]}  Qb6+ {[%clk 0:01:31]} 26. Kh2 {[%clk 0:01:18]}  Qe6 {[%clk 0:01:30]} 27. Qf3 {[%clk 0:01:15]}  Rd8 {[%clk 0:01:02]} 28. Bxd8 {[%clk 0:01:12]}  Kxd8 {[%clk 0:01:02]} 29. Rxd5+ {[%clk 0:01:09]}  Ke8 {[%clk 0:00:59]} 30. Qd3 {[%clk 0:00:46]}  Kf8 {[%clk 0:00:57]} 31. Rd6 {[%clk 0:00:38]}  Qxe5+ {[%clk 0:00:57]} 32. Kg1 {[%clk 0:00:28]}  Rh4 {[%clk 0:00:53]} 33. Rd5 {[%clk 0:00:20]}  Qe1+ {[%clk 0:00:45]} 34. Kh2 {[%clk 0:00:19]}  Kg7 {[%clk 0:00:44]} 35. Rd7 {[%clk 0:00:17]}  Qe6 {[%clk 0:00:43]} 36. Qd5 {[%clk 0:00:16]}  Qf6 {[%clk 0:00:38]} 37. Rxb7 {[%clk 0:00:15]}  a6 {[%clk 0:00:38]} 38. Rc7 {[%clk 0:00:14]}  Re4 {[%clk 0:00:38]} 39. Rd7 {[%clk 0:00:11]}  Qg5 {[%clk 0:00:36]} 40. Qxf7+ {[%clk 0:00:11]} 1-0


[Site "https://www.chess.com"]

[Event "Titled Tuesday Blitz April 25 Early 2023"]
[White "Sliwicki, Damian"]
[Black "sebastianmarinp"]
[WhiteFideId "1127128"]
[WhiteElo "2030"]
[BlackElo "2306"]
[Result "0-1"]
[Round "07"]
[TimeControl "180+2"]
[Date "2023.04.25"]
[WhiteClock "0:00:02"]
[BlackClock "0:00:26"]

1. e4 {[%clk 0:02:53]}  e5 {[%clk 0:02:59]} 2. Nf3 {[%clk 0:02:52]}  Nc6 {[%clk 0:02:59]} 3. d4 {[%clk 0:02:52]}  exd4 {[%clk 0:03:00]} 4. Bc4 {[%clk 0:02:52]}  Nf6 {[%clk 0:02:59]} 5. O-O {[%clk 0:02:52]}  Nxe4 {[%clk 0:02:52]} 6. Re1 {[%clk 0:02:51]}  d5 {[%clk 0:02:52]} 7. Bxd5 {[%clk 0:02:52]}  Qxd5 {[%clk 0:02:49]} 8. Nc3 {[%clk 0:02:52]}  Qd8 {[%clk 0:02:44]} 9. Rxe4+ {[%clk 0:02:34]}  Be7 {[%clk 0:02:44]} 10. Nxd4 {[%clk 0:02:34]}  O-O {[%clk 0:02:39]} 11. Nxc6 {[%clk 0:02:34]}  bxc6 {[%clk 0:02:39]} 12. Qxd8 {[%clk 0:02:29]}  Bxd8 {[%clk 0:02:40]} 13. Be3 {[%clk 0:02:01]}  Be6 {[%clk 0:02:16]} 14. Bc5 {[%clk 0:01:58]}  Re8 {[%clk 0:02:16]} 15. Rd1 {[%clk 0:01:50]}  Bf6 {[%clk 0:02:15]} 16. Bd4 {[%clk 0:01:50]}  Be7 {[%clk 0:01:48]} 17. b3 {[%clk 0:01:35]}  Red8 {[%clk 0:01:42]} 18. Be5 {[%clk 0:01:28]}  Rxd1+ {[%clk 0:01:20]} 19. Nxd1 {[%clk 0:01:29]}  Rd8 {[%clk 0:01:21]} 20. Ne3 {[%clk 0:01:23]}  Bd6 {[%clk 0:01:16]} 21. Bc3 {[%clk 0:00:56]}  Bc5 {[%clk 0:01:04]} 22. h3 {[%clk 0:00:54]}  h6 {[%clk 0:01:01]} 23. g4 {[%clk 0:00:44]}  Bd5 {[%clk 0:00:57]} 24. Ra4 {[%clk 0:00:39]}  Bf3 {[%clk 0:00:47]} 25. Nf5 {[%clk 0:00:23]}  g6 {[%clk 0:00:41]} 26. Nxh6+ {[%clk 0:00:16]}  Kf8 {[%clk 0:00:39]} 27. Nxf7 {[%clk 0:00:10]}  Rd1+ {[%clk 0:00:30]} 28. Kh2 {[%clk 0:00:11]}  Bxf2 {[%clk 0:00:30]} 29. Bb4+ {[%clk 0:00:01]}  c5 {[%clk 0:00:26]} 30. Be1 {[%clk 0:00:02]}  Rxe1 {[%clk 0:00:26]} 0-1


[Site "https://www.chess.com"]